bitfinex/quotes_BTCUSD_20220103
["timestamp","ask_amount","ask_price","bid_price","bid_amount"]
[1641225190697,0.00362741,46683.0,46682.0,1.025463]
[1641225190898,2.741e-05,46683.0,46682.0,1.075463]
[1641225191099,2.741e-05,46683.0,46682.0,1.21821149]
[1641225191953,2.741e-05,46683.0,46682.0,1.11821149]
[1641225192155,2.741e-05,46683.0,46682.0,0.347963]
[1641225192350,0.05358941,46683.0,46680.0,0.90503731]
[1641225192550,0.09623435,46681.0,46680.0,0.90503731]
[1641225192749,0.05358941,46683.0,46680.0,1.25300031]
[1641225192950,0.05358941,46683.0,46681.0,9.997e-05]
[1641225193148,0.05358941,46683.0,46682.0,0.08182173]
[1641225193552,2.741e-05,46683.0,46682.0,0.08182173]
[1641225194152,2.741e-05,46683.0,46682.0,0.13182173]
[1641225194951,2.741e-05,46683.0,46682.0,0.045]
[1641225195154,2.741e-05,46683.0,46681.0,9.997e-05]
[1641225196592,2.741e-05,46683.0,46682.0,0.09053289]
[1641225196894,2.741e-05,46683.0,46682.0,0.98575953]
[1641225197098,2.741e-05,46683.0,46682.0,0.98075953]
[1641225197293,2.741e-05,46683.0,46682.0,0.13553289]
[1641225197492,2.741e-05,46683.0,46682.0,0.09053289]
[1641225198994,2.741e-05,46683.0,46681.0,9.997e-05]
[1641225199254,2.741e-05,46683.0,46682.0,0.008533]
[1641225199255,0.05359416,46683.0,46682.0,0.008533]
[1641225199665,9.05359416,46683.0,46682.0,0.008533]
[1641225199854,9.45512116,46683.0,46682.0,0.008533]
[1641225200255,9.45634003,46683.0,46682.0,0.008533]
[1641225200851,9.68782314,46683.0,46682.0,0.008533]
[1641225201055,9.45634003,46683.0,46682.0,0.008533]
[1641225201256,9.45512116,46683.0,46682.0,0.008533]
[1641225201657,9.34799041,46683.0,46682.0,0.008533]
[1641225201857,9.00002741,46683.0,46682.0,0.008533]
[1641225202361,9.00002741,46683.0,46682.0,0.003533]
[1641225202756,9.44723235,46683.0,46682.0,0.003533]
[1641225202990,9.4492318,46683.0,46682.0,0.003533]
[1641225203193,9.34799041,46683.0,46682.0,0.003533]
[1641225203388,0.267766,46682.0,46680.0,0.60408613]
[1641225203588,9.00002741,46683.0,46680.0,0.60408613]
[1641225203889,9.00002741,46683.0,46680.0,0.65764613]
[1641225204089,0.5256032,46682.0,46681.0,0.07971864]
[1641225204289,0.347963,46682.0,46681.0,0.07971864]
[1641225204491,0.347963,46682.0,46681.0,0.07941864]
[1641225205190,0.347963,46682.0,46681.0,0.12941864]
[1641225205589,9.00002741,46683.0,46681.0,0.12941864]
[1641225206391,0.347963,46682.0,46681.0,0.12941864]
[1641225206639,0.347963,46682.0,46681.0,0.09648564]
[1641225206831,0.64543613,46682.0,46681.0,0.09648564]
[1641225207034,9.00002741,46683.0,46681.0,0.09648564]
[1641225207434,0.347963,46682.0,46681.0,0.09648564]
[1641225207632,9.00002741,46683.0,46681.0,0.09648564]
[1641225207831,0.347963,46682.0,46681.0,0.09648564]
[1641225208032,9.00002741,46683.0,46681.0,0.09648564]
[1641225208234,0.347963,46682.0,46681.0,0.14648564]
[1641225208434,0.347963,46682.0,46681.0,0.09648564]
[1641225208631,9.00002741,46683.0,46681.0,0.28923413]
[1641225208834,9.00002741,46683.0,46681.0,0.14648564]
[1641225209234,9.00002741,46683.0,46682.0,1.57622222]
[1641225209533,9.00002741,46683.0,46682.0,1.83404342]
[1641225209732,8.57172141,46683.0,46682.0,0.30404342]
[1641225209944,8.41735141,46683.0,46682.0,0.95404342]
[1641225210137,7.08601339,46683.0,46682.0,1.77301243]
[1641225210406,6.65776039,46683.0,46682.0,2.56923653]
[1641225210609,6.65776039,46683.0,46682.0,2.9772378]
[1641225210807,6.22951239,46683.0,46682.0,2.9772378]
[1641225211008,5.21121239,46683.0,46682.0,2.78779525]
[1641225211209,5.21121239,46683.0,46682.0,2.91073075]
[1641225211410,4.78015839,46683.0,46682.0,2.91073075]
[1641225211608,4.78015839,46683.0,46682.0,1.78073075]
[1641225212211,4.78015839,46683.0,46682.0,2.96073075]
[1641225212409,4.78015839,46683.0,46682.0,3.01073075]
[1641225212808,4.78015839,46683.0,46682.0,3.48823075]
[1641225213009,4.78015839,46683.0,46682.0,3.58823075]
[1641225213210,4.14629939,46683.0,46682.0,3.58823075]
[1641225213811,4.08629939,46683.0,46682.0,3.58823075]
[1641225214011,3.23806939,46683.0,46682.0,3.58823075]
[1641225214251,0.2248,46708.0,46686.0,0.347963]
[1641225214451,0.2248,46708.0,46703.0,0.00128137]
[1641225214649,0.80333248,46708.0,46704.0,0.096317]
[1641225214850,0.80333248,46708.0,46706.0,0.20814254]
[1641225215050,0.80333248,46708.0,46707.0,0.0428]
[1641225215249,0.80333248,46708.0,46707.0,0.0928]
[1641225215446,0.80333248,46708.0,46707.0,0.0428]
[1641225215647,0.80333248,46708.0,46707.0,0.0928]
[1641225216455,0.2248,46708.0,46707.0,0.0928]
[1641225216650,0.2248,46708.0,46707.0,0.440763]
[1641225216849,0.2248,46708.0,46707.0,0.75605005]
[1641225217054,0.2248,46708.0,46707.0,0.75728442]
[1641225217448,0.2248,46708.0,46707.0,0.85728442]
[1641225217650,0.2248,46708.0,46707.0,0.94949006]
[1641225217915,0.00798345,46712.0,46711.0,0.00120661]
[1641225218110,0.00798345,46712.0,46711.0,0.39196961]
[1641225218309,0.00798345,46712.0,46711.0,0.44196961]
[1641225218910,0.00798345,46712.0,46711.0,1.72196961]
[1641225219110,0.0007909,46712.0,46711.0,2.14109806]
[1641225219511,0.19632391,46724.0,46717.0,0.00125438]
[1641225219713,0.19632391,46724.0,46719.0,0.053502]
[1641225219912,0.19632391,46724.0,46720.0,0.0428]
[1641225220115,0.10253113,46722.0,46720.0,0.0428]
[1641225220309,0.267766,46721.0,46720.0,0.0428]
[1641225221511,0.09415751,46722.0,46720.0,0.0428]
[1641225221747,0.347963,46721.0,46720.0,0.0428]
[1641225222346,0.09415751,46722.0,46720.0,0.0428]
[1641225224352,0.347963,46721.0,46720.0,0.0428]
[1641225224753,0.053509,46723.0,46720.0,0.0428]
[1641225224954,0.00798324,46726.0,46720.0,0.0428]
[1641225225395,0.00798324,46726.0,46725.0,1.20880235]
[1641225225599,0.00798324,46726.0,46725.0,0.40283999]
[1641225225799,0.00798324,46726.0,46725.0,0.18541087]
[1641225226195,0.32837706,46731.0,46725.0,0.18541087]
[1641225226395,0.478298,46732.0,46725.0,0.18541087]
[1641225226697,0.00798315,46731.0,46726.0,0.053497]
[1641225226896,0.00798315,46731.0,46727.0,0.0428]
[1641225227500,0.30438923,46731.0,46727.0,0.0428]
[1641225227899,0.60083843,46732.0,46727.0,0.0428]
[1641225228698,0.65433929,46732.0,46727.0,0.0428]
[1641225228901,0.65433929,46732.0,46723.0,0.7251859]
[1641225228902,0.00123777,46729.0,46723.0,0.7251859]
[1641225229146,0.267766,46728.0,46723.0,0.7251859]
[1641225229343,0.00123777,46729.0,46723.0,0.7251859]
[1641225229842,0.25018463,46724.0,46723.0,0.08234493]
[1641225230042,0.25018463,46724.0,46723.0,0.008533]
[1641225230244,0.92652469,46724.0,46723.0,0.008533]
[1641225230448,0.59814763,46724.0,46723.0,0.008533]
[1641225230742,0.59314763,46724.0,46723.0,0.008473]
[1641225231543,0.59314763,46724.0,46721.0,0.008533]
[1641225231544,0.64314763,46724.0,46721.0,0.008533]
[1641225231746,0.267766,46723.0,46721.0,0.008533]
[1641225232344,0.29652357,46722.0,46721.0,0.008533]
[1641225232543,0.64448657,46722.0,46721.0,0.008533]
[1641225233590,0.64448657,46722.0,46711.0,0.7251859]
[1641225233591,1.897766,46721.0,46711.0,0.7251859]
[1641225233788,0.048526,46715.0,46711.0,0.7251859]
[1641225233985,0.10704345,46720.0,46711.0,0.7251859]
[1641225233986,0.29653417,46720.0,46711.0,0.7251859]
[1641225234185,0.3123801,46723.0,46711.0,0.7251859]
[1641225234385,0.87371711,46724.0,46711.0,0.7251859]
[1641225234788,0.17660818,46716.0,46711.0,0.008534]
[1641225234987,0.17660818,46716.0,46712.0,0.053514]
[1641225235286,0.57853248,46724.0,46715.0,0.07532321]
[1641225235486,0.347963,46723.0,46715.0,0.07532321]
[1641225235985,0.053518,46719.0,46715.0,0.07532321]
[1641225236190,0.053518,46719.0,46716.0,0.053515]
[1641225236389,0.053518,46719.0,46715.0,0.07532321]
[1641225237544,0.10222895,46718.0,46715.0,0.07532321]
[1641225238345,0.347963,46717.0,46715.0,0.07532321]
[1641225238544,0.10222895,46718.0,46715.0,0.07532321]
[1641225238749,0.053517,46715.0,46713.0,0.053516]
[1641225238944,0.0982921,46714.0,46711.0,0.008534]
[1641225239247,0.0982921,46714.0,46711.0,3.4e-05]
[1641225239248,0.1,46712.0,46711.0,3.4e-05]
[1641225239450,0.85519759,46712.0,46711.0,3.4e-05]
[1641225239647,0.97251114,46712.0,46711.0,3.4e-05]
[1641225239847,0.61527655,46712.0,46711.0,3.4e-05]
[1641225240245,0.71527655,46712.0,46711.0,3.4e-05]
[1641225240481,0.61527655,46712.0,46711.0,3.4e-05]
[1641225241290,0.347963,46712.0,46711.0,3.4e-05]
[1641225242484,0.59517839,46712.0,46711.0,3.4e-05]
[1641225242686,0.69517839,46712.0,46711.0,3.4e-05]
[1641225242884,1.04433456,46712.0,46711.0,3.4e-05]
[1641225243086,0.84647378,46712.0,46711.0,3.4e-05]
[1641225243285,1.14735771,46712.0,46711.0,3.4e-05]
[1641225243486,1.04735771,46712.0,46711.0,3.4e-05]
[1641225243686,1.14735771,46712.0,46711.0,3.4e-05]
[1641225244141,0.84647378,46712.0,46711.0,3.4e-05]
[1641225244337,0.74647378,46712.0,46711.0,3.4e-05]
[1641225244535,0.84147378,46712.0,46711.0,3.4e-05]
[1641225245335,0.74147378,46712.0,46711.0,3.4e-05]
[1641225245545,0.74147378,46712.0,46705.0,0.00797264]
[1641225245546,0.05353067,46708.0,46705.0,0.00797264]
[1641225245737,0.267766,46707.0,46705.0,0.00797264]
[1641225246138,0.1,46712.0,46705.0,0.00797264]
[1641225246336,0.80994547,46714.0,46704.0,0.2413745]
[1641225246545,0.80994547,46714.0,46706.0,0.42203161]
[1641225246740,0.80994547,46714.0,46713.0,0.00128966]
[1641225246939,0.00797273,46715.0,46713.0,0.04408966]
[1641225247136,0.00797273,46715.0,46714.0,0.43143099]
[1641225247338,0.00797273,46715.0,46714.0,0.390763]
[1641225247738,0.00797273,46715.0,46714.0,0.71119057]
[1641225248198,0.053511,46724.0,46714.0,0.71119057]
[1641225248398,0.053511,46724.0,46714.0,0.36322757]
[1641225248601,0.048511,46724.0,46718.0,0.052509]
[1641225248800,0.21888052,46725.0,46718.0,0.047509]
[1641225249001,0.347963,46724.0,46718.0,0.047509]
[1641225249205,0.4510965,46724.0,46714.0,0.11590775]
[1641225249401,0.76661766,46724.0,46718.0,0.008534]
[1641225249603,0.87364966,46724.0,46718.0,0.008534]
[1641225250001,0.05351513,46721.0,46718.0,0.008534]
[1641225250203,0.54895073,46720.0,46718.0,0.008534]
[1641225250404,0.321282,46720.0,46718.0,0.008534]
[1641225250604,0.321282,46720.0,46707.0,0.05472706]
[1641225250605,0.98,46718.0,46709.0,0.107037]
[1641225250809,0.98,46718.0,46706.0,7.045e-05]
[1641225250810,0.09705069,46716.0,46706.0,7.045e-05]
[1641225251003,0.0947285,46714.0,46706.0,7.045e-05]
[1641225251205,0.10141861,46711.0,46706.0,7.045e-05]
[1641225251406,0.42106708,46710.0,46706.0,0.05359745]
[1641225251671,0.41753908,46710.0,46709.0,0.08610721]
[1641225252163,0.41753908,46710.0,46709.0,0.08110721]
[1641225252762,0.41753908,46710.0,46709.0,0.08964021]
[1641225254064,0.39594837,46710.0,46709.0,0.008533]
[1641225255066,0.316749,46710.0,46709.0,0.008533]
[1641225255265,0.4200199,46710.0,46709.0,0.008533]
[1641225255497,0.00797267,46714.0,46709.0,0.008533]
[1641225255698,0.00797267,46714.0,46710.0,0.053519]
[1641225256296,0.32780688,46719.0,46710.0,0.053519]
[1641225256500,0.23935543,46715.0,46710.0,0.053519]
[1641225256698,0.00118863,46713.0,46710.0,0.053519]
[1641225256898,0.00118863,46713.0,46710.0,0.062053]
[1641225257100,0.04970813,46716.0,46711.0,6.337e-05]
[1641225257299,0.5659,46727.0,46712.0,0.053523]
[1641225257501,0.347833,46723.0,46711.0,6.337e-05]
[1641225257698,0.09102219,46719.0,46711.0,6.337e-05]
[1641225257899,0.266879,46718.0,46711.0,6.337e-05]
[1641225258101,0.10204377,46716.0,46711.0,6.337e-05]
[1641225258301,0.09592823,46716.0,46711.0,6.337e-05]
[1641225258500,0.347833,46715.0,46711.0,6.337e-05]
[1641225258699,0.09931921,46714.0,46711.0,6.337e-05]
[1641225258901,0.316879,46713.0,46711.0,6.337e-05]
[1641225259143,1.43116459,46712.0,46711.0,6.337e-05]
[1641225259338,1.577833,46712.0,46711.0,6.337e-05]
[1641225259537,1.677833,46712.0,46711.0,6.337e-05]
[1641225259938,0.447833,46712.0,46711.0,6.337e-05]
[1641225260539,0.44164271,46712.0,46711.0,6.337e-05]
[1641225261142,0.44309743,46712.0,46711.0,6.337e-05]
[1641225261743,0.44254715,46712.0,46711.0,6.337e-05]
[1641225263200,1.20254715,46712.0,46711.0,6.337e-05]
[1641225263394,0.44254715,46712.0,46711.0,6.337e-05]
[1641225266399,0.44282228,46712.0,46711.0,6.337e-05]
[1641225267652,0.65865416,46712.0,46711.0,6.337e-05]
[1641225267852,0.95804682,46712.0,46711.0,6.337e-05]
[1641225268053,0.65865416,46712.0,46711.0,6.337e-05]
[1641225269257,0.44282228,46712.0,46711.0,6.337e-05]
[1641225270257,0.34282228,46712.0,46711.0,6.337e-05]
[1641225271593,0.00117957,46712.0,46711.0,0.04286337]
[1641225272195,0.00117957,46712.0,46711.0,0.03786337]
[1641225272794,0.00117957,46712.0,46710.0,0.09058657]
[1641225274245,0.63252755,46717.0,46710.0,0.09058657]
[1641225274246,0.56518412,46717.0,46710.0,0.09058657]
[1641225274943,0.05351629,46718.0,46710.0,0.09058657]
[1641225275149,0.053518,46720.0,46712.0,0.053517]
[1641225275348,0.09990422,46716.0,46710.0,0.008534]
[1641225275544,0.260696,46715.0,46710.0,0.008534]
[1641225275946,0.053521,46718.0,46713.0,0.40056689]
[1641225276150,0.0048,46723.0,46716.0,0.20629669]
[1641225276151,0.81060637,46720.0,46716.0,0.20629669]
[1641225276348,0.81060637,46720.0,46717.0,0.05351]
[1641225277151,0.9145,46728.0,46712.0,0.2509235]
[1641225277152,0.347826,46719.0,46712.0,0.2509235]
[1641225277349,0.10400587,46718.0,46713.0,0.05352]
[1641225277546,0.10416271,46716.0,46713.0,0.05352]
[1641225277753,0.45026185,46715.0,46713.0,0.05352]
[1641225277995,0.45026185,46715.0,46712.0,0.2509235]
[1641225278197,0.55134926,46715.0,46712.0,0.2509235]
[1641225278897,0.397826,46715.0,46712.0,0.2509235]
[1641225279101,0.86060637,46720.0,46712.0,0.2509235]
[1641225279295,0.81060637,46720.0,46712.0,0.2509235]
[1641225279498,0.81060637,46719.0,46712.0,0.2509235]
[1641225279696,0.8094067,46719.0,46712.0,0.2509235]
[1641225279896,0.10702881,46725.0,46712.0,0.2509235]
[1641225280097,0.53735841,46724.0,46719.0,0.07239919]
[1641225280302,0.053516,46723.0,46719.0,0.05]
[1641225280501,0.3677273,46722.0,46719.0,0.05]
[1641225280702,0.3142113,46722.0,46719.0,0.05]
[1641225280899,0.4642113,46722.0,46712.0,0.2509235]
[1641225281101,0.09790197,46720.0,46712.0,0.2509235]
[1641225281300,0.09898723,46716.0,46712.0,0.2509235]
[1641225281737,0.09455246,46715.0,46712.0,0.2509235]
[1641225282138,0.13955246,46715.0,46712.0,0.2509235]
[1641225283036,0.19307646,46715.0,46712.0,0.2509235]
[1641225283239,0.098524,46715.0,46712.0,0.2509235]
[1641225283436,0.053524,46715.0,46712.0,0.2509235]
[1641225283639,0.16057134,46715.0,46712.0,0.2509235]
[1641225283846,0.68611792,46715.0,46712.0,0.3009235]
[1641225284039,0.347826,46714.0,46712.0,0.3009235]
[1641225284240,0.397826,46714.0,46712.0,0.3009235]
[1641225284440,0.497826,46714.0,46712.0,0.3009235]
[1641225284639,0.92689658,46714.0,46712.0,0.3009235]
[1641225284843,0.57907058,46714.0,46712.0,0.3009235]
[1641225285241,0.57407058,46714.0,46712.0,0.3009235]
[1641225285886,0.053518,46719.0,46712.0,0.3009235]
[1641225286086,0.053518,46719.0,46715.0,0.08118674]
[1641225286487,0.107037,46719.0,46715.0,0.13118674]
[1641225286688,0.00802607,46722.0,46715.0,0.13118674]
[1641225286892,0.347826,46721.0,46715.0,0.13118674]
[1641225287091,0.00802607,46722.0,46716.0,0.24608228]
[1641225287490,0.347826,46721.0,46716.0,0.24608228]
[1641225287892,0.05351462,46720.0,46716.0,0.053515]
[1641225288098,0.260696,46719.0,46716.0,0.053515]
[1641225288294,0.81013487,46723.0,46716.0,0.053515]
[1641225288495,0.053516,46720.0,46716.0,0.053515]
[1641225288794,0.91013487,46723.0,46716.0,0.053515]
[1641225288795,0.260696,46719.0,46716.0,0.053515]
[1641225288994,0.04851519,46720.0,46716.0,0.053515]
[1641225289262,0.04351519,46720.0,46716.0,0.053515]
[1641225289661,0.053518,46719.0,46715.0,0.13118674]
[1641225290069,0.14835376,46718.0,46712.0,0.2509235]
[1641225290266,0.09651935,46716.0,46712.0,0.2509235]
[1641225290464,0.32168834,46714.0,46712.0,0.2509235]
[1641225290667,0.42168834,46714.0,46712.0,0.2509235]
[1641225290864,1.487826,46713.0,46712.0,0.2509235]
[1641225291064,1.587826,46713.0,46712.0,0.2509235]
[1641225291267,1.641351,46713.0,46712.0,0.2509235]
[1641225291464,1.69482473,46713.0,46712.0,0.2509235]
[1641225292066,0.55482473,46713.0,46712.0,0.2509235]
[1641225293404,0.501351,46713.0,46712.0,0.2509235]
[1641225294004,0.496351,46713.0,46712.0,0.2509235]
[1641225294803,0.77085858,46713.0,46712.0,0.2509235]
[1641225295203,1.34857465,46713.0,46712.0,0.2509235]
[1641225295403,1.06906707,46713.0,46712.0,0.2509235]
[1641225295806,2.83865273,46713.0,46712.0,0.2509235]
[1641225296006,2.83994459,46713.0,46712.0,0.2509235]
[1641225296204,2.55035893,46713.0,46712.0,0.2509235]
[1641225296648,1.07035893,46713.0,46712.0,0.2509235]
[1641225296842,2.09264286,46713.0,46712.0,0.2509235]
[1641225297043,0.49264286,46713.0,46712.0,0.2509235]
[1641225297342,1.30148587,46713.0,46712.0,0.2509235]
[1641225298143,0.68917995,46713.0,46712.0,0.2509235]
[1641225298742,1.25917995,46713.0,46712.0,0.2509235]
[1641225298941,0.68917995,46713.0,46712.0,0.3009235]
[1641225299343,0.491351,46713.0,46712.0,0.3009235]
[1641225299544,0.432826,46713.0,46712.0,0.3009235]
[1641225299742,0.822826,46713.0,46712.0,0.3009235]
[1641225300398,0.822826,46713.0,46712.0,0.2509235]
[1641225300801,1.702826,46713.0,46712.0,0.2509235]
[1641225301002,1.75629973,46713.0,46712.0,0.2509235]
[1641225301202,0.87629973,46713.0,46712.0,0.2509235]
[1641225301600,0.96746973,46713.0,46712.0,0.2509235]
[1641225301799,2.20746973,46713.0,46712.0,0.2509235]
[1641225302002,1.73828857,46712.0,46711.0,0.008533]
[1641225302312,0.054829,46701.0,46700.0,0.0001]
[1641225302501,2.22589794,46701.0,46700.0,0.0001]
[1641225302901,2.36869794,46701.0,46700.0,0.0001]
[1641225303301,0.79217167,46701.0,46700.0,0.0001]
[1641225303700,1.5991577,46701.0,46700.0,0.0001]
[1641225304183,1.5991577,46701.0,46685.0,0.03039191]
[1641225304184,0.0535536,46689.0,46685.0,0.03039191]
[1641225304371,0.22836562,46690.0,46682.0,0.107102]
[1641225304572,0.22836562,46690.0,46684.0,0.053554]
[1641225304771,0.22836562,46690.0,46682.0,0.107102]
[1641225305170,0.22836562,46690.0,46683.0,0.08690035]
[1641225305370,0.10710765,46689.0,46683.0,0.08190035]
[1641225305570,0.00129306,46690.0,46683.0,0.08190035]
[1641225306371,0.21737876,46690.0,46685.0,0.053553]
[1641225306572,0.053554,46689.0,46683.0,0.08190035]
[1641225307676,0.10710792,46689.0,46683.0,0.08190035]
[1641225307889,0.10710792,46689.0,46684.0,0.053554]
[1641225307890,0.053554,46689.0,46684.0,0.053554]
[1641225308091,0.053551,46691.0,46684.0,8.137e-05]
[1641225308505,0.05476451,46691.0,46684.0,8.137e-05]
[1641225308796,0.160689,46688.0,46684.0,8.137e-05]
[1641225308991,0.235695,46687.0,46684.0,8.137e-05]
[1641225309393,0.289258,46687.0,46684.0,8.137e-05]
[1641225310199,0.342821,46687.0,46684.0,8.137e-05]
[1641225310393,0.00126308,46685.0,46684.0,8.137e-05]
[1641225310692,0.05482808,46685.0,46684.0,8.137e-05]
[1641225310894,0.40265508,46685.0,46684.0,8.137e-05]
[1641225311399,0.7038562,46685.0,46684.0,8.137e-05]
[1641225311843,0.40265508,46685.0,46684.0,8.137e-05]
[1641225312043,0.70528549,46685.0,46684.0,8.137e-05]
[1641225312944,0.75875922,46685.0,46684.0,8.137e-05]
[1641225313146,0.75875922,46685.0,46677.0,0.00102]
[1641225313147,0.235695,46681.0,46677.0,0.00102]
[1641225313350,0.59,46677.0,46676.0,0.00025]
[1641225313547,0.292485,46677.0,46676.0,0.00025]
[1641225313746,0.392485,46677.0,46676.0,0.00014]
[1641225314147,0.347827,46674.0,46673.0,2.52e-05]
[1641225314347,0.347827,46674.0,46667.0,0.0017564]
[1641225314348,0.79250254,46674.0,46667.0,0.0017564]
[1641225314555,1.4,46667.0,46659.0,0.054025]
[1641225314752,1.4,46667.0,46663.0,0.00022]
[1641225314753,1.63,46664.0,46663.0,0.00022]
[1641225314949,1.63,46664.0,46659.0,0.00044]
[1641225314950,1.5,46662.0,46660.0,0.16244]
[1641225315159,1.5,46662.0,46652.0,0.01036494]
[1641225315160,1.62,46660.0,46652.0,0.01036494]
[1641225315418,1.62,46660.0,46641.0,0.25225406]
[1641225315419,0.05347373,46655.0,46643.0,0.82776293]
[1641225315618,0.00127832,46646.0,46641.0,0.00351201]
[1641225315817,0.00127832,46646.0,46640.0,0.02044]
[1641225315818,1.63,46644.0,46640.0,0.00818501]
[1641225316018,0.98,46639.0,46634.0,0.139095]
[1641225316220,0.56,46636.0,46628.0,0.00044]
[1641225316427,0.56,46636.0,46623.0,0.00044]
[1641225316428,0.342827,46635.0,46623.0,0.00044]
[1641225316628,1.625,46634.0,46619.0,0.00011]
[1641225316821,0.18241324,46612.0,46608.0,0.1066]
[1641225317024,0.18241324,46612.0,46588.0,0.23810528]
[1641225317025,0.99978,46599.0,46588.0,0.23810528]
[1641225317220,1.08992,46599.0,46597.0,0.19941234]
[1641225317422,0.433317,46599.0,46598.0,0.5838]
[1641225317622,0.407857,46599.0,46598.0,1.06626628]
[1641225317865,0.40752691,46599.0,46598.0,2.21548355]
[1641225318120,0.18231273,46612.0,46606.0,0.00011]
[1641225318323,0.23752011,46612.0,46608.0,0.07102338]
[1641225318520,0.23752011,46612.0,46608.0,0.06602338]
[1641225318521,0.47,46609.0,46608.0,0.06602338]
[1641225318743,0.13752012,46612.0,46606.0,0.00014293]
[1641225318919,1.63,46611.0,46598.0,0.76016428]
[1641225319167,0.77042115,46610.0,46598.0,0.76016428]
[1641225319354,0.32233216,46610.0,46603.0,0.2999]
[1641225319562,0.348309,46609.0,46603.0,0.2999]
[1641225319754,0.13730012,46612.0,46611.0,0.00011]
[1641225319953,0.13719012,46612.0,46611.0,0.00011]
[1641225320155,0.1383932,46612.0,46611.0,0.348419]
[1641225320359,0.00182549,46613.0,46612.0,1.63]
[1641225320556,5.49e-06,46613.0,46612.0,2.07516527]
[1641225320755,0.002,46629.0,46614.0,0.001263]
[1641225320955,0.57502825,46633.0,46628.0,0.39792383]
[1641225320956,0.55368951,46633.0,46628.0,0.39792383]
[1641225321256,0.55368951,46633.0,46629.0,0.0228]
[1641225321458,0.348309,46632.0,46628.0,0.39792383]
[1641225321669,0.09966999,46629.0,46615.0,0.04437203]
[1641225321955,0.09966999,46629.0,46621.0,0.09893332]
[1641225322155,0.09966999,46629.0,46622.0,0.348309]
[1641225322355,0.09966999,46629.0,46621.0,0.09893332]
[1641225322557,0.09966999,46630.0,46624.0,0.05362]
[1641225322754,0.09966999,46630.0,46626.0,0.39732589]
[1641225322996,0.09966999,46630.0,46624.0,0.05362]
[1641225323196,0.00122531,46623.0,46622.0,0.00814914]
[1641225323399,0.348226,46623.0,46622.0,0.00814914]
[1641225323597,0.44789599,46623.0,46622.0,0.00814914]
[1641225324301,0.44789599,46623.0,46622.0,0.09984886]
[1641225324499,0.00126154,46631.0,46622.0,0.09984886]
[1641225324701,1.72966999,46623.0,46622.0,0.00814914]
[1641225324895,1.99805899,46623.0,46622.0,0.00814914]
[1641225325097,0.36805899,46623.0,46622.0,0.00814914]
[1641225325597,1.64741664,46623.0,46622.0,0.00814914]
[1641225325796,0.68741664,46623.0,46622.0,0.00814914]
[1641225325996,0.68741664,46623.0,46614.0,0.00814914]
[1641225326199,0.598126,46622.0,46614.0,0.00814914]
[1641225326399,0.44789599,46622.0,46614.0,0.00814914]
[1641225326652,0.44789599,46622.0,46614.0,0.00314914]
[1641225327046,0.09966999,46622.0,46614.0,0.00314914]
[1641225327247,0.00117985,46624.0,46614.0,0.00314914]
[1641225327248,0.09966999,46616.0,46614.0,0.00314914]
[1641225328450,0.27426433,46615.0,46614.0,0.00314914]
[1641225328651,0.62792871,46615.0,46614.0,0.00314914]
[1641225328849,0.348226,46615.0,46614.0,0.00314914]
[1641225329251,0.61927949,46615.0,46614.0,0.00314914]
[1641225329455,0.60959037,46615.0,46614.0,0.00314914]
[1641225329748,0.348226,46615.0,46614.0,0.00325686]
[1641225330150,0.343226,46615.0,46614.0,0.00325686]
[1641225330395,0.707249,46614.0,46608.0,0.04755586]
[1641225330594,0.187249,46614.0,46610.0,0.08734725]
[1641225330796,0.09966999,46611.0,46610.0,0.13734725]
[1641225331095,0.31022305,46614.0,46610.0,0.13734725]
[1641225331296,0.10085013,46611.0,46610.0,0.13734725]
[1641225331497,0.28550662,46611.0,46610.0,0.13734725]
[1641225331697,0.10085013,46611.0,46610.0,0.13734725]
[1641225331897,0.00118014,46611.0,46610.0,0.13734725]
[1641225332298,0.05085013,46611.0,46610.0,0.13234725]
[1641225332698,0.00128643,46613.0,46610.0,0.13234725]
[1641225332897,0.32751162,46620.0,46610.0,0.13234725]
[1641225333099,0.0012046,46617.0,46610.0,0.13234725]
[1641225333698,0.19939038,46617.0,46610.0,0.13234725]
[1641225333900,0.24939038,46617.0,46614.0,0.00297888]
[1641225334157,0.182185,46615.0,46614.0,0.00267888]
[1641225334349,1.452185,46615.0,46614.0,0.00237888]
[1641225334548,1.913438,46615.0,46614.0,0.00207888]
[1641225334858,0.35428319,46617.0,46614.0,0.00207888]
[1641225334859,0.05853681,46617.0,46614.0,0.04457888]
[1641225335049,2.81e-06,46617.0,46615.0,0.3015215]
[1641225335247,0.80698603,46624.0,46616.0,0.390781]
[1641225335248,0.78671724,46624.0,46616.0,0.390781]
[1641225335448,0.78671724,46622.0,46617.0,0.0425]
[1641225335649,0.78671724,46622.0,46617.0,0.149745]
[1641225335954,0.09623535,46632.0,46619.0,0.05]
[1641225336147,0.09623535,46632.0,46620.0,0.0428]
[1641225336548,0.348254,46631.0,46620.0,0.0378]
[1641225336750,0.348254,46631.0,46620.0,0.0328]
[1641225337150,0.10852337,46637.0,46620.0,0.0328]
[1641225337151,0.24272177,46629.0,46620.0,0.0328]
[1641225337356,0.27517714,46628.0,46620.0,0.0328]
[1641225337557,0.348254,46627.0,46620.0,0.0328]
[1641225338006,0.498254,46627.0,46620.0,0.0328]
[1641225338207,0.053633,46626.0,46620.0,0.0328]
[1641225338407,0.177516,46625.0,46620.0,0.0328]
[1641225338609,0.227516,46625.0,46620.0,0.0328]
[1641225338807,0.177516,46625.0,46620.0,0.0028]
[1641225339006,0.05,46627.0,46620.0,0.0028]
[1641225339207,0.17947084,46623.0,46620.0,0.0028]
[1641225339409,0.127531,46622.0,46620.0,0.0028]
[1641225339608,0.1,46623.0,46620.0,0.0028]
[1641225339915,0.0952733,46630.0,46626.0,0.07405523]
[1641225340111,0.348249,46629.0,46626.0,0.07405523]
[1641225340513,0.348249,46629.0,46626.0,0.12405523]
[1641225341115,0.343249,46629.0,46626.0,0.12405523]
[1641225341513,1.44,46628.0,46621.0,9.207e-05]
[1641225341762,1.7097925,46631.0,46621.0,0.04289207]
[1641225341763,0.127522,46627.0,46621.0,0.04289207]
[1641225341960,1.7097925,46631.0,46621.0,0.03789207]
[1641225342355,1.7097925,46631.0,46625.0,0.41084084]
[1641225342559,1.7097925,46631.0,46625.0,0.64557188]
[1641225342755,1.7097925,46631.0,46622.0,0.0935238]
[1641225342956,1.7097925,46631.0,46623.0,0.0395]
[1641225343657,1.7097925,46631.0,46626.0,0.053613]
[1641225343859,1.7097925,46631.0,46627.0,0.09953809]
[1641225344056,1.7097925,46631.0,46628.0,0.007961]
[1641225344260,1.7097925,46631.0,46629.0,0.44522555]
[1641225344455,1.7097925,46631.0,46629.0,0.48989677]
[1641225344656,1.7097925,46631.0,46630.0,0.21384848]
[1641225344872,1.7097925,46631.0,46630.0,0.25334848]